fUST/lending_fUST_20250724
["ID","MTS","AMOUNT","RATE_DAILY","PERIOD"]
[374474783,1753314664086,-460.0,0.00022739,2]
[374474784,1753314664096,-503.83,0.00022739,2]
[374474785,1753314664105,-947.65,0.00022739,2]
[374474786,1753314664115,-475.02,0.00022739,2]
[374474787,1753314664124,-299.77,0.00022739,2]
[374474788,1753314664134,-548.74,0.00022739,2]
[374474789,1753314664144,-4973.74,0.00022739,2]
[374474790,1753314664154,-1293.95,0.00022739,2]
[374474791,1753314664163,-962.86,0.00022739,2]
[374474792,1753314664173,-460.0,0.00022739,2]
[374474793,1753314664256,-460.0,0.00022739,2]
[374474794,1753314664267,-460.0,0.00022739,2]
[374474795,1753314664276,-3048.31,0.00022739,2]
[374474796,1753314664286,-460.0,0.00022739,2]
[374474797,1753314664295,-460.0,0.00022739,2]
[374474798,1753314664305,-669.8,0.00022739,2]
[374474799,1753314664314,-583.82,0.00022739,2]
[374474800,1753314664324,-460.0,0.00022739,2]
[374474801,1753314664334,-1501.36,0.00022739,2]
[374474802,1753314664343,-605.72,0.00022739,2]
[374474803,1753314664353,-532.09,0.00022739,2]
[374474804,1753314664363,-475.12,0.00022739,2]
[374474805,1753314664372,-3025.38,0.00022739,2]
[374474806,1753314664382,-1011.1,0.00022739,2]
[374474807,1753314664392,-514.15,0.00022739,2]
[374474808,1753314664402,-460.0,0.00022739,2]
[374474809,1753314664413,-5531.62,0.00022739,2]
[374474810,1753314664423,-1065.45,0.00022739,2]
[374474811,1753314664432,-460.0,0.00022739,2]
[374474812,1753314664442,-460.0,0.00022739,2]
[374474813,1753314664452,-2307.46,0.00022739,2]
[374474814,1753314664461,-1446.5,0.00022739,2]
[374474815,1753314664471,-460.0,0.00022739,2]
[374474816,1753314664480,-1009.01,0.00022739,2]
[374474817,1753314664490,-460.0,0.00022739,2]
[374474818,1753314664501,-486.6,0.00022739,2]
[374474819,1753314664514,-460.0,0.00022739,2]
[374474820,1753314664523,-508.53,0.00022739,2]
[374474821,1753314664533,-2213.65,0.00022739,2]
[374474822,1753314664543,-501.51,0.00022739,2]
[374474823,1753314664552,-460.0,0.00022739,2]
[374474824,1753314664563,-460.0,0.00022739,2]
[374474825,1753314664574,-460.0,0.00022739,2]
[374474826,1753314664583,-460.0,0.00022739,2]
[374474827,1753314664594,-625.58,0.00022739,2]
[374474828,1753314664604,-460.0,0.00022739,2]
[374474829,1753314664615,-809.48,0.00022739,2]
[374474830,1753314664624,-599.49,0.00022739,2]
[374474831,1753314664636,-1310.51,0.00022739,2]
[374474832,1753314664646,-184.2,0.00022739,2]
[374474833,1753314664655,-192.0,0.00022744,6]
[374474834,1753314664666,-575.93,0.00022777,2]
[374474835,1753314664676,-160.0,0.00022799,3]
[374474836,1753314664687,-154.71,0.00022832,2]
[374474837,1753314664697,-156.366059,0.00022834,7]
[374474838,1753314664707,-200.043163,0.00022834,7]
[374474839,1753314664717,-500.0,0.00022835,2]
[374474840,1753314664726,-501.89040089,0.00022835,2]
[374474841,1753314664736,-150.0,0.00022873,2]
[374474842,1753314664746,-575.95,0.00022877,3]
[374474843,1753314664755,-1883.67,0.00023,2]
[374474844,1753314664766,-4034.59517299,0.00023,4]
[374474845,1753314664777,-160.0,0.00023,2]
[374474846,1753314664786,-500.0,0.00023,8]
[374474847,1753314664796,-1129.88,0.00023013,2]
[374474848,1753314664805,-397.88,0.00023013,2]
[374474849,1753314664815,-503.83,0.00023013,2]
[374474850,1753314664824,-947.65,0.00023013,2]
[374474851,1753314664833,-475.02,0.00023013,2]
[374474852,1753314664843,-548.74,0.00023013,2]
[374474853,1753314664853,-4973.74,0.00023013,2]
[374474854,1753314664862,-1293.95,0.00023013,2]
[374474855,1753314664871,-962.86,0.00023013,2]
[374474856,1753314664881,-460.0,0.00023013,2]
[374474857,1753314664891,-460.0,0.00023013,2]
[374474858,1753314664900,-460.0,0.00023013,2]
[374474859,1753314664910,-3048.31,0.00023013,2]
[374474860,1753314664919,-460.0,0.00023013,2]
[374474861,1753314664929,-599.76,0.00023013,2]
[374474862,1753314664939,-669.8,0.00023013,2]
[374474863,1753314664948,-583.82,0.00023013,2]
[374474864,1753314664957,-460.0,0.00023013,2]
[374474865,1753314664967,-1501.36,0.00023013,2]
[374474866,1753314664976,-605.72,0.00023013,2]
[374474867,1753314664985,-532.09,0.00023013,2]
[374474868,1753314664995,-475.12,0.00023013,2]
[374474869,1753314665004,-3025.38,0.00023013,2]
[374474870,1753314665014,-1011.1,0.00023013,2]
[374474871,1753314665024,-514.15,0.00023013,2]
[374474872,1753314665033,-5531.62,0.00023013,2]
[374474873,1753314665042,-1065.45,0.00023013,2]
[374474874,1753314665051,-460.0,0.00023013,2]
[374474875,1753314665061,-460.0,0.00023013,2]
[374474876,1753314665070,-2307.46,0.00023013,2]
[374474877,1753314665079,-1446.5,0.00023013,2]
[374474878,1753314665088,-460.0,0.00023013,2]
[374474879,1753314665097,-1009.01,0.00023013,2]
[374474880,1753314665108,-460.0,0.00023013,2]
[374474881,1753314665117,-486.6,0.00023013,2]
[374474882,1753314665127,-460.0,0.00023013,2]
[374474883,1753314665136,-508.53,0.00023013,2]
[374474884,1753314665145,-2213.65,0.00023013,2]
[374474885,1753314665154,-501.51,0.00023013,2]
[374474886,1753314665163,-225.77,0.00023013,2]
[374474887,1753314665173,-460.0,0.00023013,2]
[374474888,1753314665182,-460.0,0.00023013,2]
[374474889,1753314665191,-460.0,0.00023013,2]
[374474890,1753314665201,-625.58,0.00023013,2]
[374474891,1753314665210,-460.0,0.00023013,2]
[374474892,1753314665221,-809.48,0.00023013,2]
[374474893,1753314665231,-599.49,0.00023013,2]
[374474894,1753314665241,-1310.51,0.00023013,2]
[374474895,1753314665251,-719.84913514,0.00023021,2]
[374474896,1753314665260,-487.26539813,0.00023021,2]
[374474897,1753314665270,-982.67043181,0.00023031,2]
[374474898,1753314665279,-192.0,0.00023052,6]
[374474899,1753314665288,-500.0,0.00023086,2]
[374474900,1753314665298,-25000.0,0.00023107,2]
[374474901,1753314665307,-151.0,0.00023107,2]
[374474902,1753314665317,-151.0,0.00023107,2]
[374474903,1753314665327,-151.0,0.00023107,2]
[374474904,1753314665336,-151.0,0.00023107,2]
[374474905,1753314665345,-151.0,0.00023107,2]
[374474906,1753314665354,-151.0,0.00023107,2]
[374474907,1753314665364,-151.0,0.00023107,2]
[374474908,1753314665373,-5448.58211483,0.00023107,2]
[374474909,1753314665383,-151.0,0.00023107,2]
[374474910,1753314665392,-151.0,0.00023107,2]
[374474911,1753314665402,-151.0,0.00023107,2]
[374474912,1753314665412,-151.0,0.00023107,2]
[374474913,1753314665422,-151.0,0.00023107,2]
[374474914,1753314665432,-151.0,0.00023107,2]
[374474915,1753314665441,-151.0,0.00023107,2]
[374474916,1753314665451,-151.0,0.00023107,2]
[374474917,1753314665460,-3801.642,0.00023107,2]
[374474918,1753314665537,-151.0,0.00023107,2]
[374474919,1753314665548,-151.0,0.00023107,2]
[374474920,1753314665557,-151.0,0.00023107,2]
[374474921,1753314665567,-151.0,0.00023107,2]
[374474922,1753314665577,-151.0,0.00023107,2]
[374474923,1753314665588,-250.02929599,0.00023107,2]
[374474924,1753314665598,-215.0738,0.00023107,2]
[374474925,1753314665608,-151.0,0.00023107,2]
[374474926,1753314665618,-151.0,0.00023107,2]
[374474927,1753314665628,-151.0,0.00023107,2]
[374474928,1753314665638,-151.0,0.00023107,2]
[374474929,1753314665647,-151.0,0.00023107,2]
[374474930,1753314665657,-151.0,0.00023107,2]
[374474931,1753314665666,-151.0,0.00023107,2]
[374474932,1753314665675,-151.0,0.00023107,2]
[374474933,1753314665685,-151.0,0.00023107,2]
[374474934,1753314665694,-151.0,0.00023107,2]
[374474935,1753314665704,-151.0,0.00023107,2]
[374474936,1753314665713,-151.0,0.00023107,2]
[374474937,1753314665723,-151.0,0.00023107,2]
[374474938,1753314665733,-151.0,0.00023107,2]
[374474939,1753314665742,-151.0,0.00023107,2]
[374474940,1753314665752,-151.0,0.00023107,2]
[374474941,1753314665762,-151.0,0.00023107,2]
[374474942,1753314665771,-151.0,0.00023107,2]
[374474943,1753314665781,-151.0,0.00023107,2]
[374474944,1753314665790,-151.0,0.00023107,2]
[374474945,1753314665800,-151.0,0.00023107,2]
[374474946,1753314665809,-151.0,0.00023107,2]
[374474947,1753314665819,-151.0,0.00023107,2]
[374474948,1753314665828,-151.0,0.00023107,2]
[374474949,1753314665838,-151.0,0.00023107,2]
[374474950,1753314665847,-151.0,0.00023107,2]
[374474951,1753314665856,-151.0,0.00023107,2]
[374474952,1753314665866,-3942.302754,0.00023162,2]
[374474953,1753314665875,-648.0,0.00023174,2]
[374474954,1753314665885,-969.0,0.00023174,2]
[374474955,1753314665895,-3818.04135009,0.00023217,2]
[374474956,1753314665905,-1129.88,0.00023287,2]
[374474957,1753314665914,-503.83,0.00023287,2]
[374474958,1753314665923,-947.65,0.00023287,2]
[374474959,1753314665933,-475.02,0.00023287,2]
[374474960,1753314665943,-548.74,0.00023287,2]
[374474961,1753314665954,-4973.74,0.00023287,2]
[374474962,1753314665963,-1293.95,0.00023287,2]
[374474963,1753314665973,-962.86,0.00023287,2]
[374474964,1753314665982,-358.51447499,0.00023287,2]
[374474965,1753314665992,-460.0,0.00023287,2]
[374474966,1753314666001,-460.0,0.00023287,2]
[374474967,1753314666010,-3048.31,0.00023287,2]
[374474968,1753314666020,-460.0,0.00023287,2]
[374474969,1753314666029,-669.8,0.00023287,2]
[374474970,1753314666039,-583.82,0.00023287,2]
[374474971,1753314666049,-460.0,0.00023287,2]
[374474972,1753314666059,-1501.36,0.00023287,2]
[374474973,1753314666068,-605.72,0.00023287,2]
[374474974,1753314666077,-532.09,0.00023287,2]
[374474975,1753314666087,-475.12,0.00023287,2]
[374474976,1753314666096,-3025.38,0.00023287,2]
[374474977,1753314666107,-1011.1,0.00023287,2]
[374474978,1753314666117,-514.15,0.00023287,2]
[374474979,1753314666126,-5531.62,0.00023287,2]
[374474980,1753314666135,-1065.45,0.00023287,2]
[374474981,1753314666145,-460.0,0.00023287,2]
[374474982,1753314666155,-460.0,0.00023287,2]
[374474983,1753314666164,-2307.46,0.00023287,2]
[374474984,1753314666174,-1446.5,0.00023287,2]
[374474985,1753314666184,-460.0,0.00023287,2]
[374474986,1753314666193,-1009.01,0.00023287,2]
[374474987,1753314666203,-460.0,0.00023287,2]
[374474988,1753314666212,-486.6,0.00023287,2]
[374474989,1753314666221,-460.0,0.00023287,2]
[374474990,1753314666231,-508.53,0.00023287,2]
[374474991,1753314666240,-2213.65,0.00023287,2]
[374474992,1753314666249,-501.51,0.00023287,2]
[374474993,1753314666259,-460.0,0.00023287,2]
[374474994,1753314666269,-460.0,0.00023287,2]
[374474995,1753314666278,-625.58,0.00023287,2]
[374474996,1753314666287,-460.0,0.00023287,2]
[374474997,1753314666296,-809.48,0.00023287,2]
[374474998,1753314666305,-599.49,0.00023287,2]
[374474999,1753314666315,-1310.51,0.00023287,2]
[374475000,1753314666324,-1917.94,0.000233,7]
[374475001,1753314666333,-500.0,0.000233,2]
[374475002,1753314666343,-600.0,0.00023319,2]
[374475003,1753314666353,-982.67043181,0.00023346,2]
[374475004,1753314666363,-569.94947062,0.00023348,5]
[374475005,1753314666372,-192.0,0.0002336,6]
[374475006,1753314666381,-429.674968,0.00023397,2]
[374475007,1753314666391,-4374.86,0.000234,7]
[374475008,1753314666400,-15009.7598221,0.000234,7]
[374475009,1753314666526,-5208.7101779,0.000234,7]
[374475010,1753314666535,-263.94948075,0.000234,2]
[374475011,1753314666547,-25833.49051925,0.000234,2]
[374475012,1753314666557,-739.733643,0.000234,7]
[374475013,1753314666639,-152.645156,0.00023454,3]
[374475014,1753314666649,-676.12839974,0.00023476,2]
[374475015,1753314666658,-160.0,0.000235,3]
[374475016,1753314666668,-1406.89840428,0.000235,3]
[374475017,1753314666677,-199.0,0.00023504,2]
[374475018,1753314666686,-152.645156,0.00023545,2]
[374475019,1753314666696,-1129.88,0.00023561,2]
[374475020,1753314666705,-503.83,0.00023561,2]
[374475021,1753314666714,-947.65,0.00023561,2]
[374475022,1753314666724,-475.02,0.00023561,2]
[374475023,1753314666733,-548.74,0.00023561,2]
[374475024,1753314666743,-4973.74,0.00023561,2]
[374475025,1753314666751,-1293.95,0.00023561,2]
[374475026,1753314666761,-962.86,0.00023561,2]
[374475027,1753314666770,-460.0,0.00023561,2]
[374475028,1753314666779,-460.0,0.00023561,2]
[374475029,1753314666788,-3048.31,0.00023561,2]
[374475030,1753314666798,-460.0,0.00023561,2]
[374475031,1753314666807,-669.8,0.00023561,2]
[374475032,1753314666816,-583.82,0.00023561,2]
[374475033,1753314666825,-200.0,0.00023561,2]
[374475034,1753314666835,-200.0,0.00023561,2]
[374475035,1753314666844,-183.46287209,0.00023561,2]
[374475036,1753314666854,-460.0,0.00023561,2]
[374475037,1753314666863,-1148.66202499,0.00023561,2]
[374475038,1753314667019,-460.0,0.00019726,2]
[374475039,1753314667028,-460.0,0.00019726,2]
[374475040,1753314667038,-460.0,0.0002,2]
[374475041,1753314667047,-460.0,0.0002,2]
[374475042,1753314667057,-460.0,0.00020273,2]
[374475043,1753314667067,-224.6924781,0.00020273,2]
[374475044,1753314667079,-460.0,0.00020547,2]
[374475045,1753314667088,-460.0,0.00020821,2]
[374475046,1753314667099,-739.733643,0.00020821,2]
[374475047,1753314667109,-460.0,0.00021095,2]
[374475048,1753314667119,-460.0,0.00021369,2]
[374475049,1753314667131,-739.733643,0.00021739,2]
[374475050,1753314667147,-938.09,0.00022191,2]
[374475051,1753314667168,-938.09,0.00022465,2]
[374475052,1753314667187,-739.733643,0.0002249,7]
[374475053,1753314667206,-938.09,0.00022739,2]
[374475054,1753314667227,-938.09,0.00023013,2]
[374475055,1753314667247,-151.0,0.00023107,2]
[374475056,1753314667265,-151.0,0.00023107,2]
[374475057,1753314667281,-151.0,0.00023107,2]
[374475058,1753314667301,-97.7027778,0.00023174,2]
[374475059,1753314667634,-460.0,0.00019178,2]
[374475060,1753314667644,-460.0,0.00019452,2]
[374475061,1753314667654,-401.87702452,0.00019726,2]
[374475062,1753314667665,-58.12297548,0.00019726,2]
[374475063,1753314667676,-460.0,0.0002,2]
[374475064,1753314667686,-152.67392056,0.00020273,2]
[374475065,1753314667699,-174.02173855,0.00020273,2]
[374475066,1753314667708,-343.018147,0.00021638,2]
[374475067,1753314667718,-460.0,0.00021643,2]
[374475068,1753314667729,-460.0,0.00021917,2]
[374475069,1753314667738,-460.0,0.00022191,2]
[374475070,1753314667748,-32.63535189,0.00022191,7]
[374475071,1753314667760,-310.38279511,0.00022191,7]
[374475072,1753314667771,-353.93058671,0.00022465,2]
[374475073,1753314667784,-106.06941329,0.00022465,2]
[374475074,1753314667794,-343.018147,0.0002249,7]
[374475075,1753314667804,-739.733643,0.000225,7]
[374475076,1753314667813,-343.018147,0.000225,7]
[374475077,1753314668067,-151.0,0.00023107,2]
[374475078,1753314668082,-52.2972222,0.00023174,2]
[374475079,1753314668090,-938.09,0.00023287,2]
[374475080,1753314668099,-739.733643,0.000234,7]
[374475081,1753314668106,-352.69797501,0.00023561,2]
[374475082,1753314668114,-605.72,0.00023561,2]
[374475083,1753314668121,-532.09,0.00023561,2]
[374475084,1753314668128,-475.12,0.00023561,2]
[374475085,1753314668135,-464.68623917,0.00023561,2]
[374475086,1753314668145,-2560.69376083,0.00023561,2]
[374475087,1753314668152,-724.06393828,0.00023561,2]
[374475088,1753314668160,-287.03606172,0.00023561,2]
[374475089,1753314668167,-514.15,0.00023561,2]
[374475090,1753314668174,-2538.2631604,0.00023561,2]
[374475091,1753314737247,-155.00656055,0.00018973,2]
[374475092,1753314737268,-500.0,0.00018973,2]
[374475093,1753314737289,-500.0,0.00018973,2]
[374475094,1753314737309,-161.13038984,0.00018973,2]
[374475095,1753314737330,-500.0,0.00018973,2]
[374475096,1753314737350,-626.24082304,0.00018973,2]
[374475097,1753314737371,-500.0,0.00018973,2]
[374475098,1753314737392,-300.0,0.00018977,2]
[374475099,1753314737415,-54288.62222657,0.00018978,2]
[374475100,1753314812462,5027.579968,0.0002483,120]
[374475103,1753315032916,-2368.0,0.0001805,2]
[374475104,1753315050900,205.185131,0.00013699,2]
[374475106,1753315059766,1000.0,0.00026027,120]
[374475107,1753315233635,200.0,0.00025313,120]
[374475108,1753315291707,200.0,0.00025799,120]
[374475109,1753315296660,-104.0636554,0.0001805,2]
[374475110,1753315296686,-92.9363446,0.00018546,2]
[374475111,1753315431176,-837.2712731,0.00017963,2]
[374475112,1753315431197,-162.7287269,0.00017977,2]
[374475113,1753315555100,-11.0374938,0.00017977,2]
[374475114,1753315555125,-150.0,0.00018533,2]
[374475115,1753315555145,-242.06848977,0.00018775,2]
[374475116,1753315555165,-180.22489942,0.00018821,2]
[374475117,1753315555185,-126.41361916,0.00018875,2]
[374475118,1753315635086,-160.0,0.0001892,2]
[374475119,1753315635110,-457.58634855,0.00018921,2]
[374475121,1753315647125,-384.81074328,0.00018921,2]
[374475122,1753315647147,-300.0,0.00018973,2]
[374475123,1753315647169,-752.23122672,0.00018974,2]
[374475124,1753315652132,-447.76877328,0.00018974,2]
[374475125,1753315652155,-70.71124775,0.00018974,2]
[374475126,1753315653083,-242.06848977,0.00018873,2]
[374475127,1753315653104,-143.28875225,0.00018974,2]
[374475128,1753315653127,-300.0,0.00018974,2]
[374475129,1753315653147,-1200.0,0.00018974,2]
[374475130,1753315653168,-500.0,0.00018974,2]
[374475131,1753315653188,-500.0,0.00018974,2]
[374475132,1753315653213,-500.0,0.00018974,2]
[374475133,1753315653233,-514.48250925,0.00018974,2]
[374475134,1753315653254,-427.5,0.00018974,2]
[374475135,1753315653275,-500.0,0.00018974,2]
[374475136,1753315653297,-500.0,0.00018974,2]
[374475137,1753315653321,-500.0,0.00018974,2]
[374475138,1753315653343,-522.27611207,0.00018974,2]
[374475139,1753315653364,-154.84996057,0.00018974,2]
[374475140,1753315653386,-500.0,0.00018974,2]
[374475141,1753315653411,-500.0,0.00018974,2]
[374475142,1753315653433,-500.0,0.00018974,2]
[374475143,1753315653459,-28.53171965,0.00018974,2]
[374475172,1753315832915,-158.9980362,0.00018872,2]
[374475174,1753315832926,-158.99803617,0.00018874,2]
[374475175,1753315832936,-158.99803617,0.00018876,2]
[374475176,1753315832946,-158.99803617,0.00018878,2]
[374475178,1753315832956,-971.16034196,0.000189,2]
[374475180,1753315832966,-1200.0,0.00018972,2]
[374475182,1753315832976,-14039.06090012,0.00018974,2]
[374475184,1753315832985,-332.18068713,0.00018978,2]
[374475186,1753315832996,-32205.57487358,0.00018978,2]
[374475188,1753315833009,-500.0,0.00019077,2]
[374475190,1753315833019,-360.34014081,0.00019077,2]
[374475192,1753315833030,-152.23809856,0.00019077,2]
[374475194,1753315833041,-565.49105123,0.00019078,2]
[374475196,1753315833051,-5451.7397117,0.00019078,2]
[374475198,1753315833061,-6223.69670299,0.00019078,2]
[374475200,1753315833071,-232.9,0.00019168,3]
[374475202,1753315833082,-500.0,0.00019173,2]
[374475206,1753315833094,-506.2456732,0.00019173,2]
[374475209,1753315833104,-460.0,0.00019178,2]
[374475212,1753315833114,-460.0,0.00019178,2]
[374475215,1753315833124,-460.0,0.00019178,2]
[374475217,1753315833133,-460.0,0.00019178,2]
[374475219,1753315833143,-242.03143647,0.00019178,2]
[374475221,1753315833153,-460.0,0.00019178,2]
[374475223,1753315833163,-460.0,0.00019178,2]
[374475225,1753315833173,-460.0,0.00019178,2]
[374475227,1753315833183,-460.0,0.00019178,2]
[374475229,1753315833193,-460.0,0.00019178,2]
[374475231,1753315833202,-460.0,0.00019178,2]
[374475233,1753315833212,-460.0,0.00019178,2]
[374475235,1753315833222,-460.0,0.00019178,2]
[374475237,1753315833232,-460.0,0.00019178,2]
[374475239,1753315833241,-460.0,0.00019178,2]
[374475241,1753315833251,-460.0,0.00019178,2]
[374475244,1753315833261,-460.0,0.00019178,2]
[374475246,1753315833271,-460.0,0.00019178,2]
[374475248,1753315833281,-460.0,0.00019178,2]
[374475250,1753315833291,-460.0,0.00019178,2]
[374475252,1753315833300,-460.0,0.00019178,2]
[374475254,1753315833310,-460.0,0.00019178,2]
[374475256,1753315833321,-562.60727901,0.00019178,2]
[374475258,1753315833331,-515.88322257,0.00019178,2]
[374475260,1753315833340,-461.16638355,0.00019178,2]
[374475262,1753315833351,-460.0,0.00019178,2]
[374475264,1753315833361,-460.0,0.00019178,2]
[374475266,1753315833371,-461.14878173,0.00019178,2]
[374475267,1753315833380,-460.0,0.00019178,2]
[374475268,1753315833390,-461.00435684,0.00019178,2]
[374475269,1753315833400,-460.0,0.00019178,2]
[374475270,1753315833410,-460.0,0.00019178,2]
[374475271,1753315833420,-460.0,0.00019178,2]
[374475272,1753315833430,-460.0,0.00019178,2]
[374475273,1753315833439,-469.64618594,0.00019178,2]
[374475274,1753315833449,-460.0,0.00019178,2]
[374475275,1753315833460,-460.0,0.00019178,2]
[374475276,1753315833470,-460.0,0.00019178,2]
[374475277,1753315833480,-460.0,0.00019178,2]
[374475278,1753315833489,-460.0,0.00019178,2]
[374475279,1753315833499,-460.0,0.00019178,2]
[374475280,1753315833509,-424.19779052,0.00019178,2]
[374475281,1753315833519,-460.0,0.00019178,2]
[374475282,1753315833532,-460.0,0.00019178,2]
[374475283,1753315833543,-460.0,0.00019178,2]
[374475284,1753315833553,-460.0,0.00019178,2]
[374475285,1753315833562,-588.58587348,0.00019178,2]
[374475286,1753315833573,-460.0,0.00019178,2]
[374475287,1753315833582,-460.0,0.00019178,2]
[374475288,1753315833592,-460.0,0.00019178,2]
[374475289,1753315833603,-460.0,0.00019178,2]
[374475290,1753315833613,-460.0,0.00019178,2]
[374475291,1753315833624,-460.0,0.00019178,2]
[374475292,1753315833634,-460.0,0.00019178,2]
[374475293,1753315833644,-460.0,0.00019178,2]
[374475294,1753315833653,-560.7721542,0.00019178,2]
[374475295,1753315833663,-460.0,0.00019178,2]
[374475296,1753315833672,-466.90820524,0.00019178,2]
[374475297,1753315833682,-460.0,0.00019178,2]
[374475298,1753315833692,-729.98,0.00019178,2]
[374475299,1753315833702,-464.05545929,0.00019178,2]
[374475300,1753315833712,-460.0,0.00019178,2]
[374475301,1753315833722,-460.0,0.00019178,2]
[374475302,1753315833732,-460.0,0.00019178,2]
[374475303,1753315833742,-460.0,0.00019178,2]
[374475304,1753315833752,-460.0,0.00019178,2]
[374475305,1753315833762,-460.0,0.00019178,2]
[374475306,1753315833771,-460.0,0.00019178,2]
[374475307,1753315833781,-460.0,0.00019178,2]
[374475308,1753315833791,-460.0,0.00019178,2]
[374475309,1753315833801,-331.78272404,0.00019178,2]
[374475310,1753315833810,-424.94142798,0.00019178,2]
[374475311,1753315833820,-460.0,0.00019178,2]
[374475312,1753315833830,-161.8942032,0.00019178,2]
[374475313,1753315833839,-460.0,0.00019178,2]
[374475314,1753315833850,-460.0,0.00019178,2]
[374475315,1753315833859,-460.0,0.00019178,2]
[374475316,1753315833869,-460.0,0.00019178,2]
[374475317,1753315833879,-460.0,0.00019178,2]
[374475318,1753315833888,-460.0,0.00019178,2]
[374475319,1753315833898,-460.0,0.00019178,2]
[374475320,1753315833907,-460.0,0.00019178,2]
[374475321,1753315833916,-460.0,0.00019178,2]
[374475322,1753315833926,-460.0,0.00019178,2]
[374475323,1753315833936,-460.0,0.00019178,2]
[374475324,1753315833945,-460.0,0.00019178,2]
[374475325,1753315833955,-460.0,0.00019178,2]
[374475326,1753315833966,-460.0,0.00019178,2]
[374475327,1753315833975,-460.0,0.00019178,2]
[374475328,1753315833987,-460.0,0.00019178,2]
[374475329,1753315833998,-460.0,0.00019178,2]
[374475330,1753315834010,-460.0,0.00019178,2]
[374475331,1753315834019,-460.0,0.00019178,2]
[374475332,1753315834029,-278.75852086,0.00019178,2]
[374475333,1753315834047,-181.24147914,0.00019178,2]
[374475334,1753315834056,-460.0,0.00019178,2]
[374475335,1753315834066,-460.0,0.00019178,2]
[374475336,1753315834075,-460.0,0.00019178,2]
[374475337,1753315834087,-460.0,0.00019178,2]
[374475338,1753315834097,-460.0,0.00019178,2]
[374475339,1753315834106,-494.30199203,0.00019178,2]
[374475340,1753315834116,-460.0,0.00019178,2]
[374475341,1753315834126,-460.0,0.00019178,2]
[374475342,1753315834136,-460.0,0.00019178,2]
[374475343,1753315834146,-624.26,0.00019178,2]
[374475344,1753315834155,-314.9923924,0.00019178,2]
[374475345,1753315834165,-554.8631452,0.00019178,2]
[374475346,1753315834175,-460.0,0.00019178,2]
[374475347,1753315834184,-460.0,0.00019178,2]
[374475348,1753315834194,-460.0,0.00019178,2]
[374475349,1753315834204,-459.84158368,0.00019178,2]
[374475350,1753315834214,-460.0,0.00019178,2]
[374475351,1753315834224,-460.0,0.00019178,2]
[374475352,1753315834234,-460.0,0.00019178,2]
[374475353,1753315834244,-460.0,0.00019178,2]
[374475354,1753315834253,-460.0,0.00019178,2]
[374475355,1753315834263,-460.0,0.00019178,2]
[374475356,1753315834272,-460.0,0.00019178,2]
[374475357,1753315834282,-460.9512279,0.00019178,2]
[374475358,1753315834292,-460.0,0.00019178,2]
[374475359,1753315834301,-460.0,0.00019178,2]
[374475360,1753315834312,-460.0,0.00019178,2]
[374475361,1753315834321,-541.16,0.00019178,2]
[374475362,1753315834332,-967.78,0.00019178,2]
[374475363,1753315834342,-460.0,0.00019178,2]